fUSD/lending_fUSD_20240615
["ID","MTS","AMOUNT","RATE_DAILY","PERIOD"]
[329588808,1718467497270,-172.0345361,0.00042897,120]
[329588809,1718467497355,-265486.70748604,0.00043,45]
[329588810,1718467497420,-1501.21,0.00043,30]
[329588811,1718467497460,-950.0,0.00043,120]
[329588812,1718467497531,-439.4461131,0.00043,120]
[329588813,1718467497600,-2500.0,0.00043,120]
[329588814,1718467497657,-316.2287414,0.00043,120]
[329588815,1718467497708,-500.0,0.00043,120]
[329588816,1718467497759,-1117.0,0.00043,120]
[329588817,1718467497828,-15088.60137375,0.00043,30]
[329588818,1718467497884,-2000.0,0.00043,30]
[329588819,1718467497940,-150.0,0.00043004,30]
[329588820,1718467497983,-197.82873041,0.0004302,120]
[329588821,1718467498052,-150.0,0.0004307,30]
[329588822,1718467498117,-150.0,0.00043151,30]
[329588823,1718467498164,-150.0,0.00043203,30]
[329588824,1718467498198,-1400.0,0.00043252,30]
[329588825,1718467498250,-150.0,0.00043253,30]
[329588826,1718467498297,-150.0,0.00043313,30]
[329588827,1718467498358,-150.0,0.00043313,30]
[329588828,1718467498409,-150.0,0.00043402,30]
[329588829,1718467498456,-150.0,0.00043435,30]
[329588830,1718467498488,-150.0,0.00043476,30]
[329588831,1718467498527,-1000.0,0.00043486,120]
[329588832,1718467498563,-2978.83694267,0.000436,120]
[329588833,1718467498612,-150.0,0.00043601,30]
[329588834,1718467498661,-3191.53292461,0.00043602,120]
[329588835,1718467498720,-150.0,0.00043618,30]
[329588836,1718467498780,-150.0,0.00043638,30]
[329588837,1718467498830,-262.59184463,0.000437,120]
[329588838,1718467498871,-511.2623521,0.000437,120]
[329588839,1718467499161,-641.61999312,0.000437,30]
[329588840,1718467499217,-1400.0,0.000438,30]
[329588841,1718467499262,-271.13399696,0.000438,120]
[329588842,1718467499333,-464.58657474,0.000438,30]
[329588843,1718467499390,-112667.16391192,0.000438,30]
[329588844,1718467499423,-1355671.83263026,0.000438,60]
[329588845,1718467499478,-216.0,0.000438,30]
[329588846,1718467499527,-210.0,0.000438,30]
[329588847,1718467499608,-207.0,0.000438,30]
[329588848,1718467499645,-204.0,0.000438,30]
[329588849,1718467499679,-150.0,0.000438,30]
[329588850,1718467499739,-162.17407662,0.000438,30]
[329588851,1718467499784,-164.65780299,0.000438,30]
[329588852,1718467499845,-151.43181989,0.000438,30]
[329588853,1718467499928,-152.65585173,0.000438,30]
[329588854,1718467500070,-150.79901932,0.000438,30]
[329588855,1718467500159,-152.0,0.000438,31]
[329588856,1718467500243,-151.0,0.000438,51]
[329588857,1718467500289,-1038.0,0.00043835,30]
[329588858,1718467500355,-16000.0,0.00043835,120]
[329588859,1718467500390,-500.0,0.00043835,120]
[329588860,1718467500440,-500.0,0.00043835,120]
[329588861,1718467500481,-500.0,0.00043835,120]
[329588862,1718467500545,-500.0,0.00043835,120]
[329588863,1718467500593,-500.0,0.00043835,120]
[329588864,1718467500633,-500.0,0.00043835,120]
[329588865,1718467500721,-500.0,0.00043835,120]
[329588866,1718467500784,-500.0,0.00043835,120]
[329588867,1718467500840,-500.0,0.00043835,120]
[329588868,1718467500882,-500.0,0.00043835,120]
[329588869,1718467501012,-500.0,0.00043835,120]
[329588870,1718467501127,-500.0,0.00043835,120]
[329588871,1718467501187,-500.0,0.00043835,120]
[329588872,1718467501259,-302.59109475,0.00043835,120]
[329588873,1718467501573,269.195,0.00042129,30]
[329588874,1718467501957,163.963,0.00043004,30]
[329588875,1718467504231,154.54046257,0.00042912,120]
[329588876,1718467504579,154.54046257,0.00042833,120]
[329588877,1718467504894,154.54046257,0.00042771,120]
[329588878,1718467506358,154.54046257,0.00042939,120]
[329588879,1718467506669,154.54046257,0.00042803,120]
[329588880,1718467508052,618.72119629,0.000317,30]
[329588881,1718467509966,323.92317652,0.00029,30]
[329588882,1718467511992,150.0,0.0004161,30]
[329588883,1718467512236,1402.46730112,0.00032,60]
[329588884,1718467512388,150.0,0.00042158,30]
[329588885,1718467512731,150.0,0.00042705,30]
[329588886,1718467513204,150.0,0.00043253,30]
[329588887,1718467513738,150.0,0.000438,30]
[329588888,1718467514472,270.62826359,0.00041809,30]
[329588889,1718467519750,152.0,0.00042904,31]
[329588890,1718467519879,152.0,0.00041973,31]
[329588891,1718467519991,152.0,0.00041041,31]
[329588892,1718467619177,-272.58319031,0.00011014,2]
[329588893,1718467626214,-1024.27308806,0.00011014,2]
[329588894,1718467626267,-381.20704418,0.00011015,2]
[329588895,1718467626325,-589.10344881,0.00011116,2]
[329588896,1718467626367,-495.01,0.00011116,2]
[329588897,1718467626415,-929.08831565,0.00012495,2]
[329588898,1718467780755,496.03,0.0001071,2]
[329588899,1718467791721,591.227928,0.00012232,2]
[329588902,1718467833936,-523.35370311,0.00012293,2]
[329588903,1718467833968,-300.0,0.00012494,2]
[329588904,1718467834004,-78708.72538451,0.00012495,2]
[329588905,1718467834032,-23900.0,0.00012642,2]
[329588906,1718467834064,-250.0,0.00012649,2]
[329588907,1718467834096,-150.0,0.00012686,2]
[329588908,1718467834119,-795.49,0.00012708,2]
[329588909,1718467834141,-297.17,0.00012715,2]
[329588910,1718467834152,-500.0,0.0001282,2]
[329588911,1718467834162,-250.0,0.00012845,2]
[329588912,1718467834173,-496.03,0.00012974,2]
[329588913,1718467834187,-2279.84,0.00013071,2]
[329588914,1718467834198,-177.91,0.00013115,2]
[329588915,1718467834208,-235.14,0.00013244,2]
[329588916,1718467834232,-300.0,0.000134,4]
[329588917,1718467834243,-5771.69,0.00013425,2]
[329588918,1718467834270,-600.0,0.000135,4]
[329588919,1718467834298,-13316.0,0.00013538,2]
[329588920,1718467834311,-900.0,0.000136,4]
[329588921,1718467834323,-707.59213816,0.00013697,2]
[329588922,1718467834349,-3514.4963,0.00013697,2]
[329588923,1718467834372,-2278.6643,0.00013697,2]
[329588924,1718467834386,-476.55835402,0.00013698,2]
[329588925,1718467834396,-254.9,0.00013699,2]
[329588926,1718467834407,-226.6,0.00013699,2]
[329588927,1718467834418,-1200.0,0.000137,5]
[329588928,1718467834454,-1000.0,0.000137,2]
[329588929,1718467834471,-1000.0,0.000137,2]
[329588930,1718467834489,-420.0,0.00013709,2]
[329588931,1718467834517,-7323.15413047,0.00013787,2]
[329588932,1718467834538,-186.81772801,0.00013787,2]
[329588933,1718467834562,-255.18089907,0.00013795,2]
[329588934,1718467834581,-646.33825097,0.00013795,2]
[329588935,1718467834622,-307.70579132,0.00013795,2]
[329588936,1718467834638,-1261.96442366,0.00013795,2]
[329588937,1718467834652,-263.57373489,0.00013795,2]
[329588938,1718467834672,-579.91057823,0.00013795,2]
[329588939,1718467834690,-508.98507123,0.00013795,2]
[329588940,1718467834705,-1361.61066528,0.00013795,2]
[329588941,1718467834726,-963.84789456,0.00013795,2]
[329588942,1718467834752,-500.0,0.00013795,2]
[329588943,1718467834764,-268.74584708,0.00013796,2]
[329588944,1718467834776,-2446.18743435,0.00013796,2]
[329588945,1718467834790,-165084.41498037,0.00013797,2]
[329588953,1718467842245,-1100.56928573,0.00013797,2]
[329588954,1718467842942,-1192.8949193,0.00013797,2]
[329588955,1718467842956,-465.65120639,0.00013797,2]
[329588956,1718467843059,-93854.94646282,0.00013797,2]
[329588957,1718467843075,-500.0,0.00013797,2]
[329588958,1718467843107,-317.62305723,0.00013797,2]
[329588959,1718467843488,-3e-08,0.00013797,2]
[329588964,1718467843957,-3598.76533425,0.00013797,2]
[329588965,1718467843971,-6654.59036002,0.00013797,2]
[329588966,1718467844359,-666.53,0.00013797,2]
[329588967,1718467844386,-300.001004,0.00013797,2]
[329588968,1718467844411,-4106.74786892,0.00013797,2]
[329588984,1718467844856,-670.44822,0.00013797,2]
[329588985,1718467844878,-10749.99846051,0.00013797,2]
[329588986,1718467844900,-1664.7,0.00013797,2]
[329588987,1718467844947,-3778.90231718,0.00013797,2]
[329588988,1718467844988,-6650.0,0.00013797,2]
[329588994,1718467845516,-2343.715875,0.00013797,2]
[329588998,1718467845536,-444.98454015,0.00013797,2]
[329589002,1718467845562,-1340.0,0.00013797,2]
[329589006,1718467845585,-46969.22696969,0.00013797,2]
[329589011,1718467845649,-748.63230573,0.00013797,2]
[329589021,1718467845803,-814.55264413,0.00013797,2]
[329589024,1718467845834,-133079.8,0.00013797,2]
[329589035,1718467846288,-1494.91356086,0.00013797,2]
[329589036,1718467846302,-15359.07919537,0.00013797,2]
[329589037,1718467846322,-1290.75930665,0.00013797,2]
[329589038,1718467846348,-213.07645053,0.00013798,2]
[329589039,1718467846369,-1039.93094947,0.00013798,2]
[329589040,1718467846384,-14940.87504319,0.00013798,2]
[329589041,1718467846408,-406.91787054,0.00013798,2]
[329589042,1718467846465,-5997.70709996,0.00013798,2]
[329589043,1718467846481,-5005.09999602,0.00013798,2]
[329589044,1718467846987,-650.36277005,0.00013798,2]
[329589045,1718467847750,-903.814,0.00013798,2]
[329589046,1718467847764,-864.39422921,0.00013798,2]
[329589047,1718467847778,-13325.02928826,0.00013798,2]
[329589048,1718467847791,-5029.13486897,0.00013798,2]
[329589056,1718467848849,-52876.6648338,0.00013798,2]
[329589057,1718467848863,-1600.0,0.000138,5]
[329589058,1718467848875,-3000.0,0.0001386,2]
[329589059,1718467848893,-181.22632872,0.000139,2]
[329589061,1718467848904,-19241.44526172,0.000139,2]
[329589062,1718467848915,-165.47442074,0.000139,2]
[329589063,1718467848925,-300.0,0.000139,5]
[329589064,1718467848936,-500.0,0.0001393,2]
[329589065,1718467848948,-500.0,0.0001393,2]
[329589066,1718467849017,-500.0,0.0001393,2]
[329589067,1718467849045,-500.0,0.0001393,2]
[329589068,1718467849058,-500.0,0.0001393,2]
[329589069,1718467849069,-359.2052,0.0001393,2]
[329589070,1718467849086,-1000.0,0.0001393,2]
[329589071,1718467849108,-1000.0,0.0001393,2]
[329589072,1718467849136,-1000.0,0.0001393,2]
[329589073,1718467849157,-1000.0,0.0001393,2]
[329589074,1718467849178,-1000.0,0.0001393,2]
[329589075,1718467849208,-1000.0,0.0001393,2]
[329589076,1718467849254,-1000.0,0.0001393,2]
[329589077,1718467849267,-1000.0,0.0001393,2]
[329589078,1718467849284,-1000.0,0.0001393,2]
[329589079,1718467849311,-1000.0,0.0001393,2]
[329589080,1718467849329,-501.8194,0.0001393,2]
[329589081,1718467849347,-152.43,0.0001399,2]
[329589082,1718467849362,-152.43,0.0001399,2]
[329589083,1718467849390,-152.43,0.0001399,2]
[329589084,1718467849407,-152.43,0.0001399,2]
[329589085,1718467849435,-152.43,0.0001399,2]
[329589086,1718467849465,-195.46155543,0.00013997,2]
[329589087,1718467849488,-1000.5957,0.00013999,2]
[329589088,1718467849503,-511.74380967,0.00013999,2]
[329589089,1718467849518,-263094.03538695,0.00014,2]
[329589090,1718467849778,-476.64629689,0.00013797,2]
[329589091,1718467849820,-9976.35370311,0.00014,2]
[329589092,1718467849840,-2052.77498263,0.00014,2]
[329589093,1718467849860,-5199.61708795,0.00014,2]
[329589094,1718467849885,-3679.57179634,0.00014,2]
[329589095,1718467849924,-458.11552598,0.00014,2]
[329589096,1718467849943,-2602.61002186,0.00014,2]
[329589098,1718467850804,-19912.17052964,0.00014,2]
[329589100,1718467850838,-719.84129831,0.00014,2]
[329589105,1718467892681,362.81476569,0.00012232,2]
[329589106,1718467935458,200.0,0.0001393,30]
[329589107,1718467935521,200.0,0.0001393,30]
[329589108,1718467935622,200.0,0.0001393,30]
[329589109,1718467935755,200.0,0.0001393,30]
[329589110,1718467935805,200.0,0.0001393,30]
[329589111,1718468069158,200.0,0.0001386,30]
[329589112,1718468069203,200.0,0.0001386,30]
[329589113,1718468069262,200.0,0.0001386,30]
[329589114,1718468069322,200.0,0.0001386,30]
[329589115,1718468233986,406.56,0.00025,30]
[329589120,1718468300144,151.0,0.00023436,30]
[329589121,1718468345945,6969.59173801,0.00010643,2]
[329589122,1718468350446,498.76,0.00010495,2]
[329589123,1718468385851,410.98131787,0.00010495,2]
[329589124,1718468406072,377.57367677,0.00010495,2]
[329589125,1718468829233,-522.98728476,0.00010721,2]
[329589126,1718468829262,-193.29781389,0.00010722,2]
[329589127,1718468829286,-2128.88201612,0.00010722,2]
[329589128,1718468843380,-1278.25364587,0.00010721,2]
[329589129,1718468843419,-2166.30408025,0.00010722,2]
[329589130,1718468843498,-168.14,0.00010959,2]
[329589131,1718468843531,-300.0,0.00012193,2]
[329589132,1718468843573,-3670.9116,0.00012194,2]
[329589133,1718468843643,-2416.39067388,0.00012219,2]
[329589134,1718468843988,-10000.0,0.00012219,2]
[329589135,1718468844265,-10000.0,0.00012219,2]
[329589136,1718468844911,-1483.60932612,0.00012219,2]
[329589137,1718468844987,-1000.0,0.00012244,2]
[329589138,1718468845067,-250.0,0.0001228,2]
[329589139,1718468845124,-2032.55,0.00012364,2]
[329589140,1718468845155,-200.0,0.00012383,2]
[329589141,1718468845204,-1105.58,0.00012383,2]
[329589142,1718468845239,-250.0,0.00012396,2]
[329589143,1718468845275,-155.0,0.00012597,2]
[329589144,1718468845308,-498.76,0.00012759,2]
[329589145,1718468845357,-334.89,0.000128,2]
[329589146,1718468845409,-334.89,0.00012835,2]
[329589147,1718468845484,-334.89,0.0001287,2]
[329589148,1718468845579,-334.89,0.00012905,2]
[329589149,1718468845641,-334.89,0.0001294,2]
[329589150,1718468845681,-499.99,0.00012965,2]
[329589151,1718468845726,-334.89,0.00012976,2]
[329589152,1718468845757,-334.89,0.00013011,2]
[329589153,1718468852314,180.28067388,0.00013045,2]
[329589154,1718468854275,-15.68787273,0.00013045,2]
[329589155,1718468895335,403.04460759,0.00012325,2]
[329589156,1718468897141,193.29781389,0.00013045,2]
[329589157,1718468902878,300.98654404,0.00013045,2]
[329589158,1718468906587,177.91,0.00012769,2]
[329589159,1718468914568,787.03385046,0.00013045,2]
[329589160,1718468921354,3890.18672252,0.00013045,2]
[329589161,1718468921444,529.05020946,0.00013045,2]
[329589162,1718468928613,448.88,0.00010851,2]
[329589163,1718468963878,-334.89,0.00013046,2]
[329589164,1718468963942,-334.89,0.00013081,2]
[329589165,1718468963985,-448.88,0.00013115,2]
[329589166,1718468964034,-334.89,0.00013116,2]
[329589167,1718468964074,-334.89,0.00013151,2]
[329589168,1718468964138,-334.89,0.00013186,2]
[329589169,1718468964200,-334.89,0.00013221,2]
[329589170,1718468964239,-334.89,0.00013256,2]
[329589171,1718468964596,-121.6358,0.00013291,2]
[329589172,1718469023097,-971.03372508,0.0001329,2]
[329589173,1718469023160,-213.2542,0.00013291,2]
[329589174,1718469023202,-334.89,0.00013327,2]
[329589175,1718469023240,-334.89,0.00013362,2]
[329589176,1718469023275,-334.89,0.00013397,2]
[329589177,1718469023307,-334.89,0.00013432,2]
[329589178,1718469023344,-334.89,0.00013467,2]
[329589179,1718469023401,-150.0,0.00013596,2]
[329589180,1718469023462,-194.3651,0.00013597,2]
[329589181,1718469023494,-1428.9726,0.00013597,2]
[329589182,1718469023542,-155.0,0.00013695,2]
[329589183,1718469023592,-241.58417095,0.00013695,2]
[329589184,1718469023633,-157.72869476,0.00013695,2]
[329589185,1718469023684,-4813.61150921,0.00013695,2]
[329589186,1718469023841,-482.7611324,0.00013695,2]
[329589187,1718469023896,-155.47371377,0.00013695,2]
[329589188,1718469023942,-667.45016743,0.00013695,2]
[329589189,1718469023985,-1219.0116262,0.00013695,2]
[329589190,1718469024038,-155.08275231,0.00013695,2]
[329589191,1718469024085,-4085.50348319,0.00013695,2]
[329589192,1718469024121,-307.61646073,0.00013695,2]
[329589193,1718469024214,-546.12541869,0.00013695,2]
[329589194,1718469024286,-447.64379879,0.00013695,2]
[329589195,1718469024358,-1933.33144649,0.00013695,2]
[329589196,1718469024783,-473.89763778,0.00013695,2]
[329589197,1718469024822,-626.16539489,0.00013695,2]
[329589198,1718469024900,-195.83334803,0.00013695,2]
[329589199,1718469024938,-536.64594277,0.00013695,2]
[329589200,1718469024985,-3686.20541867,0.00013695,2]
[329589201,1718469025077,-907.01622304,0.00013695,2]
[329589202,1718469025125,-163.74706766,0.00013695,2]
[329589203,1718469025170,-3410.48896716,0.00013695,2]
[329589204,1718469025389,-2099.55987165,0.00013695,2]
[329589205,1718469025454,-193.1336079,0.00013695,2]
[329589206,1718469025496,-786.1308027,0.00013695,2]
[329589207,1718469025544,-425.46409834,0.00013695,2]
[329589208,1718469025580,-1384.66298204,0.00013696,2]
[329589209,1718469025626,-5111.04863737,0.00013696,2]
[329589210,1718469026850,-10000.0,0.00013696,2]
[329589211,1718469027241,-10000.0,0.00013696,2]
[329589212,1718469028293,-10000.0,0.00013696,2]
[329589213,1718469028891,-10000.0,0.00013696,2]
[329589220,1718469034482,-180.01482587,0.00013695,2]
[329589221,1718469034513,-4429.90551056,0.00013696,2]
[329589222,1718469034588,-13260.0,0.00013696,2]
[329589223,1718469035558,-3143.24310221,0.00013696,2]
[329589235,1718469036307,-22270.69935755,0.00013696,2]
[329589237,1718469036321,-36953.7486,0.00013697,2]
[329589238,1718469036334,-100000.0,0.00013697,2]
[329589240,1718469036351,-1000.0,0.00013697,2]
[329589242,1718469036381,-247.53,0.00013699,2]
[329589244,1718469036397,-789.74,0.00013699,2]
[329589246,1718469036415,-500.0,0.000137,2]
[329589249,1718469036449,-1000.0,0.00013774,2]
[329589251,1718469036477,-83012.6167,0.000138,2]
[329589253,1718469036491,-553.1955299,0.0001386,2]
[329589255,1718469036508,-7479.88737401,0.0001386,2]
[329589257,1718469036524,-3000.0,0.0001386,2]
[329589258,1718469036549,-500.0,0.00013887,2]
[329589260,1718469036604,-200.0,0.00013887,2]
[329589263,1718469036624,-500.0,0.00013888,2]
[329589264,1718469036656,-500.0,0.00013888,2]
[329589266,1718469036685,-500.0,0.00013888,2]
[329589269,1718469036716,-500.0,0.00013888,2]
[329589271,1718469036739,-200.0,0.00013888,2]
[329589274,1718469036767,-200.0,0.00013888,2]
[329589275,1718469036836,-1000.0,0.00013899,2]
[329589277,1718469036860,-13070.5049,0.000139,2]
[329589279,1718469036883,-353.5,0.000139,2]
[329589281,1718469036900,-189.20246051,0.000139,2]
[329589283,1718469036936,-7500.0,0.000139,2]
[329589285,1718469036950,-179.77556321,0.000139,2]
[329589287,1718469036977,-17731.11533622,0.000139,2]
[329589288,1718469036999,-163.77036259,0.000139,2]
[329589291,1718469037021,-193.72133692,0.000139,2]
[329589293,1718469037034,-219.48903513,0.000139,2]
[329589295,1718469037050,-152.44,0.0001399,2]
[329589297,1718469037085,-152.44,0.0001399,2]
[329589299,1718469037102,-164.74503866,0.00013997,2]
[329589301,1718469037117,-155.28236147,0.00013997,2]
[329589303,1718469037131,-1253.00744138,0.00013997,2]
[329589305,1718469037142,-2965.51735866,0.00013997,2]
[329589306,1718469037182,-296.62503898,0.00013998,2]
[329589308,1718469037195,-276.19488064,0.00013998,2]
[329589310,1718469037212,-155.0,0.00013998,2]
[329589312,1718469037234,-719.78187496,0.00013998,2]
[329589314,1718469037250,-235.01777921,0.00013998,2]
[329589316,1718469037265,-176.31329187,0.00013998,2]
[329589319,1718469037288,-155.0,0.00013998,2]
[329589320,1718469037308,-201.37416449,0.00013998,2]
[329589322,1718469037337,-1300.06879292,0.00013998,2]
[329589325,1718469037361,-281.11164112,0.00013998,2]
[329589327,1718469037396,-265.45840376,0.00013998,2]
[329589328,1718469037407,-155.28927007,0.00013998,2]
[329589330,1718469037435,-129516.08456239,0.00013999,2]
[329589332,1718469037473,-113551.24488331,0.00013999,2]
[329589334,1718469037487,-1000.0,0.00013999,2]
[329589336,1718469037514,-590.0,0.00014,2]
[329589338,1718469037545,-254463.37613965,0.00014,2]
[329589341,1718469037562,-551.97962702,0.00014,2]
[329589342,1718469037579,-5105.40212826,0.00014,2]
[329589344,1718469037592,-6196.82910935,0.00014,2]
[329589358,1718469037854,-6160.39373051,0.00014,2]
[329589359,1718469037893,-444.50127724,0.00014,2]
[329589361,1718469037926,-7437.33639892,0.00014,2]
[329589363,1718469037946,-1114.59880131,0.00014,2]
[329589436,1718469040035,-1302.9061697,0.000139,2]
[329589440,1718469040048,-228.77844858,0.000139,2]
[329589445,1718469040097,-33448.83942286,0.00014,2]
[329589449,1718469040128,-10749.99865251,0.00014,2]
[329589486,1718469040905,-394.13833027,0.00014,2]
[329589488,1718469040925,-365.47862122,0.00014,2]
[329589491,1718469040949,-1809.88722951,0.00014,2]
[329589493,1718469040992,-538.40670183,0.00014,2]
[329589495,1718469041008,-1992.91092,0.00014,2]
[329589498,1718469041057,-714.00000001,0.00014,2]
[329589500,1718469041078,-1500.0,0.00014,2]
[329589527,1718469041799,-525.0,0.00014,2]
[329589528,1718469041814,-34090.99999995,0.00014,2]
[329589529,1718469041827,-4412.1,0.00014,2]
[329589530,1718469041846,-861.13551302,0.00014,2]
[329589531,1718469041897,-980.02229166,0.00014,2]
[329589532,1718469041933,-1000.5567,0.00014,2]
[329589650,1718469044982,-522.98728476,0.00013899,2]
[329589653,1718469045002,-341.67854935,0.00013899,2]
[329589656,1718469045074,-58160.09393197,0.00014,2]
[329589658,1718469045142,-138000.0,0.00014,2]
[329589660,1718469045157,-73550.0,0.00014,2]
[329589662,1718469045184,-662.18,0.00014,2]
[329589688,1718469045692,-15892.39864307,0.00014,2]
[329589690,1718469045748,-66250.0,0.00014,2]
[329589692,1718469045783,-605205.95745541,0.00014,2]
[329589695,1718469045833,-856792.6123244,0.00014,2]
[329589697,1718469045869,-1217.98387141,0.00014,2]
[329589701,1718469045902,-12692.45625003,0.00014,2]
[329589703,1718469045927,-867.1,0.00014,2]
[329589707,1718469045987,-9182.6798053,0.00014,2]
[329589709,1718469046012,-22129.60649458,0.00014,2]
[329589712,1718469046047,-7507.5,0.00014,2]
[329589714,1718469046061,-16629.59516514,0.00014,2]
[329589716,1718469046079,-22341.9318155,0.00014,2]
[329589747,1718469046902,-332.587255,0.00014,2]
[329589749,1718469046923,-5987.24720007,0.00014,2]
[329589751,1718469046963,-273.70426346,0.00014,2]
[329589752,1718469047022,-524.80375544,0.00014,2]
[329589754,1718469047059,-811.13921495,0.00014,2]
[329589756,1718469047087,-1092.99227866,0.00014,2]
[329589759,1718469047101,-4560.45308147,0.00014,2]
[329589761,1718469047119,-477.8877877,0.00014,2]
[329589763,1718469047139,-500.13282941,0.00014,2]
[329589775,1718469047362,-66539.9,0.00014,2]
[329589813,1718469049489,-346.76974357,0.00014,2]
[329589820,1718469049580,-28502.76267388,0.00014,2]
[329589821,1718469049593,-797.22,0.00014,2]
[329589823,1718469049619,-440.74979347,0.00014,2]
[329589825,1718469049633,-955.82349593,0.00014,2]
[329589828,1718469049649,-1597.20860124,0.00014,2]
[329589830,1718469049663,-459.25250162,0.00014,2]
[329589844,1718469049681,-458.27649239,0.00014,2]
[329589876,1718469050455,-641.74277227,0.00014,2]
[329589878,1718469050488,-481.5349996,0.00014,2]
[329589880,1718469050510,-544.20630404,0.00014,2]
[329589882,1718469050524,-1662.4453858,0.00014,2]
[329589884,1718469050541,-585.79333653,0.00014,2]
[329589886,1718469050559,-66587.4096569,0.00014,2]
[329589889,1718469050588,-826.99837158,0.00014,2]
[329589891,1718469050636,-3855.0044704,0.00014,2]
[329589894,1718469050671,-4455.29405457,0.00014,2]
[329589896,1718469050688,-13765.58284051,0.00014,2]
[329589902,1718469051201,-3520.54,0.00013999,2]
[329589903,1718469051214,-32409.34786668,0.00014,2]
[329589905,1718469051227,-75000.0,0.00014,2]
[329590160,1718469084211,-1302.30583545,0.00013299,2]
[329590161,1718469084246,-324.40312278,0.00013439,2]
[329590162,1718469084304,-300.0,0.00013694,2]
[329590163,1718469084345,-8073.29104177,0.00013695,2]
[329590164,1718469084930,-10000.0,0.00013695,2]
[329590165,1718469097462,-253.62978949,0.00013298,2]
[329590166,1718469097516,-9746.37021051,0.00013597,2]
[329590167,1718469108905,-10000.0,0.00013597,2]
[329590170,1718469265696,-317.12810746,0.00010999,2]
[329590171,1718469265744,-2374.86184575,0.00011,2]
[329590172,1718469265814,-888.10104341,0.000118,2]
[329590173,1718469265848,-367.87590175,0.00012352,2]
[329590174,1718469265880,-163.27789293,0.00012353,2]
[329590175,1718469265939,-525.84461513,0.00012451,2]
[329590176,1718469265995,-2.91059357,0.00012451,2]
[329590182,1718469434939,209.81265832,0.0001,2]
[329590183,1718469479135,348.18949365,0.0001,2]
[329590184,1718469480371,510.93,0.00010564,2]
[329590185,1718469483719,155.0,0.0001,2]
[329590186,1718469486179,-268.98603627,0.00012342,2]
[329590187,1718469486219,-453.76515583,0.00012343,2]
[329590188,1718469486268,-339.01815387,0.00012344,2]
[329590189,1718469486315,-330.58540631,0.00012344,2]
[329590190,1718469486332,-37.29049544,0.00012344,2]
[329590191,1718469486345,-231.69554083,0.00012345,2]
[329590192,1718469486379,-453.76515583,0.00012345,2]
[329590193,1718469486417,-339.01815387,0.00012345,2]
[329590194,1718469486430,-367.87590175,0.00012345,2]
[329590195,1718469495860,155.0,0.0001,2]
[329590196,1718469497067,155.42691115,0.0001,2]
[329590197,1718469499731,155.5692436,0.0001,2]
[329590198,1718469509254,-67.07651985,0.00012099,2]
[329590199,1718469509292,-531.8469603,0.00012099,2]
[329590200,1718469509324,-67.07651985,0.00012345,2]
[329590201,1718469513865,155.0995825,0.0001,2]
[329590202,1718469534295,-886.40752803,0.00012446,2]
[329590203,1718469534347,-300.0,0.0001245,2]
[329590204,1718469534402,-150.24755386,0.00012451,2]
[329590205,1718469565536,8949.31810133,0.0001,2]
[329590206,1718469582987,55484.98828123,0.0001,2]
[329590207,1718469592816,-3905.1520318,0.00012349,2]
[329590208,1718469592869,-1789.62602813,0.0001235,2]
[329590209,1718469592908,-300.0,0.0001245,2]
[329590210,1718469592951,-150.0,0.0001245,2]
[329590211,1718469593016,-150.0,0.0001245,2]
[329590212,1718469593067,-149.68983622,0.00012451,2]
[329590213,1718469593117,-180.8170053,0.00012451,2]
[329590214,1718469593196,-3374.71509855,0.00012451,2]
[329590215,1718469594204,-1388.47981943,0.00012451,2]